[Event "Titled Tuesday Blitz October 31 Early 2023"]
[White "Sourath Biswas"]
[Black "Federzoni, Enzo"]
[WhiteFideId "35091484"]
[BlackFideId "2173301"]
[WhiteElo "2610"]
[BlackElo "2316"]
[Result "0-1"]
[Round "2"]
[TimeControl "180+1"]
[Date "2023.10.31"]
[WhiteClock "0:00:03"]
[BlackClock "0:00:54"]
[Board "134"]

1. d4 {[%clk 0:03:00]}  Nf6 {[%clk 0:02:58]} 2. Bf4 {[%clk 0:02:59]}  g6 {[%clk 0:02:57]} 3. Nc3 {[%clk 0:02:59]}  d5 {[%clk 0:02:56]} 4. e3 {[%clk 0:03:00]}  Bg7 {[%clk 0:02:54]} 5. h4 {[%clk 0:02:59]}  c6 {[%clk 0:02:52]} 6. Be2 {[%clk 0:02:53]}  h5 {[%clk 0:02:49]} 7. Nf3 {[%clk 0:02:53]}  O-O {[%clk 0:02:47]} 8. O-O {[%clk 0:02:44]}  Bg4 {[%clk 0:02:46]} 9. Ne5 {[%clk 0:02:44]}  Bxe2 {[%clk 0:02:42]} 10. Nxe2 {[%clk 0:02:45]}  Nbd7 {[%clk 0:02:43]} 11. c4 {[%clk 0:02:41]}  Nxe5 {[%clk 0:02:40]} 12. dxe5 {[%clk 0:02:41]}  Ng4 {[%clk 0:02:37]} 13. cxd5 {[%clk 0:02:40]}  Qxd5 {[%clk 0:02:34]} 14. Qxd5 {[%clk 0:02:33]}  cxd5 {[%clk 0:02:35]} 15. Bg5 {[%clk 0:01:57]}  e6 {[%clk 0:02:22]} 16. f4 {[%clk 0:01:40]}  Nxe3 {[%clk 0:02:20]} 17. Rf3 {[%clk 0:01:37]}  Nf5 {[%clk 0:02:18]} 18. Rc1 {[%clk 0:01:36]}  Rfc8 {[%clk 0:02:17]} 19. Rfc3 {[%clk 0:01:36]}  Rxc3 {[%clk 0:02:05]} 20. Rxc3 {[%clk 0:01:37]}  Bf8 {[%clk 0:02:06]} 21. Rc7 {[%clk 0:01:35]}  b6 {[%clk 0:02:03]} 22. Kf2 {[%clk 0:01:17]}  Bc5+ {[%clk 0:02:03]} 23. Ke1 {[%clk 0:01:18]}  a5 {[%clk 0:02:00]} 24. Kd2 {[%clk 0:01:16]}  Bf2 {[%clk 0:01:56]} 25. Rc6 {[%clk 0:00:54]}  Rb8 {[%clk 0:01:52]} 26. Kd3 {[%clk 0:00:42]}  Bxh4 {[%clk 0:01:52]} 27. Bxh4 {[%clk 0:00:39]}  Nxh4 {[%clk 0:01:53]} 28. g3 {[%clk 0:00:39]}  Nf5 {[%clk 0:01:53]} 29. a3 {[%clk 0:00:28]}  Kf8 {[%clk 0:01:53]} 30. b4 {[%clk 0:00:28]}  axb4 {[%clk 0:01:54]} 31. axb4 {[%clk 0:00:29]}  Ke8 {[%clk 0:01:55]} 32. Rc7 {[%clk 0:00:28]}  Ra8 {[%clk 0:01:51]} 33. Rb7 {[%clk 0:00:19]}  Nxg3 {[%clk 0:01:51]} 34. Nxg3 {[%clk 0:00:18]}  Ra3+ {[%clk 0:01:51]} 35. Ke2 {[%clk 0:00:18]}  Rxg3 {[%clk 0:01:52]} 36. Rxb6 {[%clk 0:00:18]}  h4 {[%clk 0:01:48]} 37. Rb8+ {[%clk 0:00:18]}  Ke7 {[%clk 0:01:49]} 38. Rh8 {[%clk 0:00:18]}  Rb3 {[%clk 0:01:48]} 39. Rxh4 {[%clk 0:00:18]}  Rxb4 {[%clk 0:01:48]} 40. Ke3 {[%clk 0:00:18]}  g5 {[%clk 0:01:45]} 41. Rh5 {[%clk 0:00:18]}  gxf4+ {[%clk 0:01:44]} 42. Kf3 {[%clk 0:00:18]}  Re4 {[%clk 0:01:45]} 43. Rg5 {[%clk 0:00:18]}  f5 {[%clk 0:01:38]} 44. Rg7+ {[%clk 0:00:09]}  Kf8 {[%clk 0:01:37]} 45. Rd7 {[%clk 0:00:07]}  Rxe5 {[%clk 0:01:36]} 46. Kxf4 {[%clk 0:00:07]}  Re4+ {[%clk 0:01:34]} 47. Kg5 {[%clk 0:00:08]}  Ke8 {[%clk 0:01:34]} 48. Ra7 {[%clk 0:00:08]}  d4 {[%clk 0:01:32]} 49. Kf6 {[%clk 0:00:05]}  f4 {[%clk 0:01:30]} 50. Re7+ {[%clk 0:00:04]}  Kd8 {[%clk 0:01:29]} 51. Rf7 {[%clk 0:00:05]}  e5 {[%clk 0:01:28]} 52. Kf5 {[%clk 0:00:05]}  Re3 {[%clk 0:01:28]} 53. Ke6 {[%clk 0:00:06]}  f3 {[%clk 0:01:16]} 54. Kd6 {[%clk 0:00:05]}  Ke8 {[%clk 0:01:16]} 55. Ke6 {[%clk 0:00:05]}  d3 {[%clk 0:01:10]} 56. Rh7 {[%clk 0:00:05]}  Kf8 {[%clk 0:01:07]} 57. Kf6 {[%clk 0:00:04]}  Kg8 {[%clk 0:01:07]} 58. Rg7+ {[%clk 0:00:04]}  Kh8 {[%clk 0:01:07]} 59. Rd7 {[%clk 0:00:04]}  f2 {[%clk 0:01:04]} 60. Kg6 {[%clk 0:00:04]}  Rg3+ {[%clk 0:00:57]} 61. Kh6 {[%clk 0:00:03]}  f1=Q {[%clk 0:00:54]} 0-1


[Site "https://www.chess.com"]

[Event "Titled Tuesday Blitz October 31 Early 2023"]
[White "tetrix83"]
[Black "Bobomurodova, Maftuna"]
[BlackFideId "14207400"]
[WhiteElo "2600"]
[BlackElo "2314"]
[Result "0-1"]
[Round "2"]
[TimeControl "180+1"]
[Date "2023.10.31"]
[WhiteClock "0:00:00"]
[BlackClock "0:00:11"]
[Board "136"]

1. e4 {[%clk 0:02:17]}  e5 {[%clk 0:02:59]} 2. Nf3 {[%clk 0:02:08]}  Nc6 {[%clk 0:02:58]} 3. Bb5 {[%clk 0:02:06]}  Nf6 {[%clk 0:02:57]} 4. O-O {[%clk 0:02:05]}  Nxe4 {[%clk 0:02:55]} 5. Re1 {[%clk 0:02:05]}  Nd6 {[%clk 0:02:54]} 6. Nxe5 {[%clk 0:02:06]}  Nxe5 {[%clk 0:02:54]} 7. Rxe5+ {[%clk 0:02:06]}  Be7 {[%clk 0:02:54]} 8. Bf1 {[%clk 0:02:07]}  O-O {[%clk 0:02:53]} 9. d4 {[%clk 0:02:06]}  Bf6 {[%clk 0:02:53]} 10. Re1 {[%clk 0:02:06]}  Ne8 {[%clk 0:02:53]} 11. d5 {[%clk 0:01:58]}  d6 {[%clk 0:02:47]} 12. a4 {[%clk 0:01:48]}  g6 {[%clk 0:02:44]} 13. a5 {[%clk 0:01:39]}  a6 {[%clk 0:02:39]} 14. Nd2 {[%clk 0:01:34]}  Bg7 {[%clk 0:02:23]} 15. Ra3 {[%clk 0:01:32]}  Nf6 {[%clk 0:02:21]} 16. Ne4 {[%clk 0:01:28]}  Bf5 {[%clk 0:02:17]} 17. Ng3 {[%clk 0:01:25]}  Bg4 {[%clk 0:02:08]} 18. Qd3 {[%clk 0:01:20]}  Re8 {[%clk 0:02:01]} 19. Rxe8+ {[%clk 0:01:12]}  Qxe8 {[%clk 0:02:00]} 20. Rb3 {[%clk 0:01:11]}  Rb8 {[%clk 0:01:37]} 21. Qc4 {[%clk 0:01:11]}  Qc8 {[%clk 0:01:26]} 22. h3 {[%clk 0:01:07]}  Bd7 {[%clk 0:01:26]} 23. Rc3 {[%clk 0:00:56]}  Ne8 {[%clk 0:01:23]} 24. Re3 {[%clk 0:00:51]}  Bb5 {[%clk 0:01:19]} 25. Qb3 {[%clk 0:00:41]}  Bxf1 {[%clk 0:01:17]} 26. Kxf1 {[%clk 0:00:41]}  Qd7 {[%clk 0:01:12]} 27. Bd2 {[%clk 0:00:38]}  Nf6 {[%clk 0:01:03]} 28. c4 {[%clk 0:00:37]}  Bh6 {[%clk 0:01:00]} 29. Re2 {[%clk 0:00:37]}  Bg7 {[%clk 0:00:59]} 30. Bc3 {[%clk 0:00:36]}  c6 {[%clk 0:00:55]} 31. dxc6 {[%clk 0:00:33]}  Qxc6 {[%clk 0:00:55]} 32. Bd4 {[%clk 0:00:29]}  Rc8 {[%clk 0:00:53]} 33. Rc2 {[%clk 0:00:23]}  Nd7 {[%clk 0:00:34]} 34. Bxg7 {[%clk 0:00:22]}  Kxg7 {[%clk 0:00:34]} 35. Qc3+ {[%clk 0:00:23]}  f6 {[%clk 0:00:34]} 36. b3 {[%clk 0:00:20]}  Re8 {[%clk 0:00:27]} 37. Rd2 {[%clk 0:00:20]}  Re6 {[%clk 0:00:25]} 38. Qd4 {[%clk 0:00:19]}  Nc5 {[%clk 0:00:24]} 39. Qc3 {[%clk 0:00:19]}  Qc7 {[%clk 0:00:23]} 40. b4 {[%clk 0:00:17]}  Ne4 {[%clk 0:00:21]} 41. Nxe4 {[%clk 0:00:16]}  Rxe4 {[%clk 0:00:21]} 42. Rd4 {[%clk 0:00:17]}  Qe7 {[%clk 0:00:20]} 43. Rxe4 {[%clk 0:00:16]}  Qxe4 {[%clk 0:00:20]} 44. Kg1 {[%clk 0:00:13]}  Qb1+ {[%clk 0:00:20]} 45. Kh2 {[%clk 0:00:13]}  Qe4 {[%clk 0:00:20]} 46. g3 {[%clk 0:00:13]}  Qe6 {[%clk 0:00:20]} 47. Qd4 {[%clk 0:00:12]}  Qe2 {[%clk 0:00:20]} 48. Kg2 {[%clk 0:00:12]}  Qe6 {[%clk 0:00:20]} 49. h4 {[%clk 0:00:12]}  Qd7 {[%clk 0:00:20]} 50. Qd5 {[%clk 0:00:12]}  Qc7 {[%clk 0:00:19]} 51. Kf3 {[%clk 0:00:11]}  f5 {[%clk 0:00:19]} 52. Qd4+ {[%clk 0:00:11]}  Kf7 {[%clk 0:00:20]} 53. Qd5+ {[%clk 0:00:12]}  Kg7 {[%clk 0:00:20]} 54. h5 {[%clk 0:00:12]}  Qd7 {[%clk 0:00:13]} 55. Qd4+ {[%clk 0:00:11]}  Kf7 {[%clk 0:00:13]} 56. h6 {[%clk 0:00:11]}  Qc6+ {[%clk 0:00:12]} 57. Ke3 {[%clk 0:00:10]}  Ke6 {[%clk 0:00:12]} 58. Ke2 {[%clk 0:00:08]}  Qh1 {[%clk 0:00:12]} 59. Qe3+ {[%clk 0:00:08]}  Kd7 {[%clk 0:00:12]} 60. Qb6 {[%clk 0:00:03]}  Qg2 {[%clk 0:00:10]} 61. b5 {[%clk 0:00:02]}  Qe4+ {[%clk 0:00:10]} 62. Kf1 {[%clk 0:00:02]}  Qxc4+ {[%clk 0:00:10]} 63. Kg1 {[%clk 0:00:00]}  Qxb5 {[%clk 0:00:11]} 0-1


[Site "https://www.chess.com"]

[Event "Titled Tuesday Blitz October 31 Early 2023"]
[White "ReinisUz"]
[Black "NovoselovRoman"]
[WhiteElo "2301"]
[BlackElo "2543"]
[Result "0-1"]
[Round "2"]
[TimeControl "180+1"]
[Date "2023.10.31"]
[WhiteClock "0:02:08"]
[BlackClock "0:02:25"]
[Board "142"]

1. g3 {[%clk 0:02:56]}  Nf6 {[%clk 0:02:54]} 2. Bg2 {[%clk 0:02:54]}  d5 {[%clk 0:02:55]} 3. d4 {[%clk 0:02:54]}  c6 {[%clk 0:02:56]} 4. Nf3 {[%clk 0:02:54]}  Bf5 {[%clk 0:02:55]} 5. O-O {[%clk 0:02:54]}  Nbd7 {[%clk 0:02:55]} 6. c4 {[%clk 0:02:54]}  e6 {[%clk 0:02:56]} 7. cxd5 {[%clk 0:02:53]}  exd5 {[%clk 0:02:56]} 8. Nc3 {[%clk 0:02:53]}  Be7 {[%clk 0:02:56]} 9. a3 {[%clk 0:02:54]}  a5 {[%clk 0:02:54]} 10. Bf4 {[%clk 0:02:51]}  O-O {[%clk 0:02:54]} 11. Nh4 {[%clk 0:02:49]}  Be6 {[%clk 0:02:51]} 12. Bd2 {[%clk 0:02:40]}  Ne4 {[%clk 0:02:49]} 13. Bxe4 {[%clk 0:02:34]}  dxe4 {[%clk 0:02:50]} 14. Ng2 {[%clk 0:02:34]}  f5 {[%clk 0:02:45]} 15. Qc2 {[%clk 0:02:28]}  Nb6 {[%clk 0:02:39]} 16. Na4 {[%clk 0:02:18]}  Qxd4 {[%clk 0:02:30]} 17. Nxb6 {[%clk 0:02:18]}  Qxb6 {[%clk 0:02:29]} 18. Be3 {[%clk 0:02:19]}  Qb3 {[%clk 0:02:25]} 19. Qxb3 {[%clk 0:02:17]}  Bxb3 {[%clk 0:02:26]} 20. Rac1 {[%clk 0:02:08]}  Bf6 {[%clk 0:02:25]} 0-1


[Site "https://www.chess.com"]

[Event "Titled Tuesday Blitz October 31 Early 2023"]
[White "Titichoca Daza, Daniel"]
[Black "gpsji27"]
[WhiteFideId "3309550"]
[WhiteElo "2535"]
[BlackElo "2289"]
[Result "1-0"]
[Round "2"]
[TimeControl "180+1"]
[Date "2023.10.31"]
[WhiteClock "0:00:55"]
[BlackClock "0:00:18"]
[Board "144"]

1. d4 {[%clk 0:02:50]}  d5 {[%clk 0:02:58]} 2. c4 {[%clk 0:02:47]}  e6 {[%clk 0:02:58]} 3. Nf3 {[%clk 0:02:48]}  Nf6 {[%clk 0:02:57]} 4. Qc2 {[%clk 0:02:46]}  Nc6 {[%clk 0:02:54]} 5. e3 {[%clk 0:02:45]}  Be7 {[%clk 0:02:52]} 6. Nbd2 {[%clk 0:02:44]}  O-O {[%clk 0:02:52]} 7. a3 {[%clk 0:02:45]}  a5 {[%clk 0:02:51]} 8. b3 {[%clk 0:02:44]}  h6 {[%clk 0:02:35]} 9. Bb2 {[%clk 0:02:42]}  Nh7 {[%clk 0:02:35]} 10. Bd3 {[%clk 0:02:39]}  f5 {[%clk 0:02:35]} 11. g4 {[%clk 0:02:39]}  Bf6 {[%clk 0:02:03]} 12. cxd5 {[%clk 0:02:35]}  exd5 {[%clk 0:02:01]} 13. gxf5 {[%clk 0:02:35]}  Ne7 {[%clk 0:02:01]} 14. O-O-O {[%clk 0:02:29]}  a4 {[%clk 0:01:58]} 15. b4 {[%clk 0:02:28]}  b6 {[%clk 0:01:59]} 16. Kb1 {[%clk 0:02:27]}  c5 {[%clk 0:01:55]} 17. dxc5 {[%clk 0:02:27]}  bxc5 {[%clk 0:01:56]} 18. Qxc5 {[%clk 0:02:26]}  Bxb2 {[%clk 0:01:54]} 19. Kxb2 {[%clk 0:02:25]}  Bxf5 {[%clk 0:01:54]} 20. Qd4 {[%clk 0:02:18]}  Nc6 {[%clk 0:01:50]} 21. Qc3 {[%clk 0:02:17]}  Rc8 {[%clk 0:01:44]} 22. Rhg1 {[%clk 0:02:16]}  Qd7 {[%clk 0:01:31]} 23. Bxf5 {[%clk 0:02:15]}  Rxf5 {[%clk 0:01:31]} 24. Rc1 {[%clk 0:02:15]}  Nf6 {[%clk 0:01:23]} 25. Nd4 {[%clk 0:02:13]}  Rxf2 {[%clk 0:01:17]} 26. Nxc6 {[%clk 0:02:12]}  Rxc6 {[%clk 0:01:14]} 27. Qxc6 {[%clk 0:02:10]}  Rxd2+ {[%clk 0:01:14]} 28. Ka1 {[%clk 0:02:10]}  Qe7 {[%clk 0:01:13]} 29. Qc8+ {[%clk 0:02:04]}  Ne8 {[%clk 0:01:13]} 30. Qc3 {[%clk 0:01:59]}  Rxh2 {[%clk 0:01:10]} 31. Rg3 {[%clk 0:01:33]}  Nd6 {[%clk 0:00:48]} 32. Qd4 {[%clk 0:01:24]}  Qf7 {[%clk 0:00:38]} 33. Rgg1 {[%clk 0:01:15]}  Nf5 {[%clk 0:00:34]} 34. Qe5 {[%clk 0:01:13]}  d4 {[%clk 0:00:30]} 35. Qxh2 {[%clk 0:01:11]}  dxe3 {[%clk 0:00:29]} 36. Rc8+ {[%clk 0:01:04]}  Kh7 {[%clk 0:00:29]} 37. Qb8 {[%clk 0:01:05]}  Qf6+ {[%clk 0:00:23]} 38. Kb1 {[%clk 0:01:04]}  g5 {[%clk 0:00:22]} 39. Qb7+ {[%clk 0:00:58]}  Ng7 {[%clk 0:00:21]} 40. Qe4+ {[%clk 0:00:58]}  Nf5 {[%clk 0:00:21]} 41. Rc7+ {[%clk 0:00:57]}  Kg6 {[%clk 0:00:18]} 42. Rc6 {[%clk 0:00:55]} 1-0


[Site "https://www.chess.com"]

[Event "Titled Tuesday Blitz October 31 Early 2023"]
[White "Tologon tegin, Semetei"]
[Black "Goh, Zi Han"]
[WhiteFideId "13800574"]
[BlackFideId "5819156"]
[WhiteElo "2526"]
[BlackElo "2288"]
[Result "1-0"]
[Round "2"]
[TimeControl "180+1"]
[Date "2023.10.31"]
[WhiteClock "0:00:04"]
[BlackClock "0:00:00"]
[Board "145"]

1. Nc3 {[%clk 0:02:52]}  d5 {[%clk 0:02:40]} 2. d4 {[%clk 0:02:51]}  Nf6 {[%clk 0:02:39]} 3. Bg5 {[%clk 0:02:51]}  Bf5 {[%clk 0:02:35]} 4. e3 {[%clk 0:02:49]}  e6 {[%clk 0:02:35]} 5. Nf3 {[%clk 0:02:46]}  Nbd7 {[%clk 0:02:35]} 6. Bd3 {[%clk 0:02:46]}  Bxd3 {[%clk 0:02:29]} 7. cxd3 {[%clk 0:02:46]}  Be7 {[%clk 0:02:28]} 8. O-O {[%clk 0:02:45]}  h6 {[%clk 0:02:28]} 9. Bh4 {[%clk 0:02:44]}  O-O {[%clk 0:02:28]} 10. Qb3 {[%clk 0:02:36]}  b6 {[%clk 0:02:06]} 11. Rac1 {[%clk 0:02:35]}  c5 {[%clk 0:02:06]} 12. e4 {[%clk 0:02:08]}  cxd4 {[%clk 0:02:01]} 13. Nxd4 {[%clk 0:02:07]}  Nc5 {[%clk 0:01:48]} 14. Qc2 {[%clk 0:02:06]}  dxe4 {[%clk 0:01:40]} 15. Nc6 {[%clk 0:02:06]}  exd3 {[%clk 0:01:34]} 16. Nxd8 {[%clk 0:01:54]}  dxc2 {[%clk 0:01:34]} 17. Nc6 {[%clk 0:01:55]}  Rfe8 {[%clk 0:01:25]} 18. Nb5 {[%clk 0:01:45]}  Rac8 {[%clk 0:00:56]} 19. Ncxa7 {[%clk 0:01:33]}  Ra8 {[%clk 0:00:55]} 20. Rxc2 {[%clk 0:01:31]}  Nd5 {[%clk 0:00:48]} 21. Bxe7 {[%clk 0:01:29]}  Rxe7 {[%clk 0:00:48]} 22. Nc6 {[%clk 0:01:29]}  Rd7 {[%clk 0:00:43]} 23. b4 {[%clk 0:01:20]}  Ne4 {[%clk 0:00:36]} 24. a3 {[%clk 0:01:13]}  Ne7 {[%clk 0:00:30]} 25. Ne5 {[%clk 0:01:01]}  Rd5 {[%clk 0:00:15]} 26. Nc7 {[%clk 0:01:00]}  Rxa3 {[%clk 0:00:16]} 27. Nxd5 {[%clk 0:00:59]}  Nxd5 {[%clk 0:00:17]} 28. Rc8+ {[%clk 0:00:59]}  Kh7 {[%clk 0:00:17]} 29. Nxf7 {[%clk 0:00:58]}  Nxb4 {[%clk 0:00:17]} 30. Rb8 {[%clk 0:00:53]}  Nd5 {[%clk 0:00:17]} 31. Nd8 {[%clk 0:00:40]}  Nc5 {[%clk 0:00:12]} 32. Re1 {[%clk 0:00:39]}  Kg6 {[%clk 0:00:09]} 33. g3 {[%clk 0:00:36]}  Kf6 {[%clk 0:00:09]} 34. Nc6 {[%clk 0:00:35]}  Ra2 {[%clk 0:00:06]} 35. h4 {[%clk 0:00:31]}  Nd3 {[%clk 0:00:06]} 36. Rf8+ {[%clk 0:00:30]}  Kg6 {[%clk 0:00:05]} 37. Rxe6+ {[%clk 0:00:31]}  Kh7 {[%clk 0:00:06]} 38. Ne5 {[%clk 0:00:22]}  Nxe5 {[%clk 0:00:04]} 39. Rxe5 {[%clk 0:00:21]}  Rd2 {[%clk 0:00:05]} 40. Rd8 {[%clk 0:00:20]}  Rd1+ {[%clk 0:00:05]} 41. Kh2 {[%clk 0:00:20]}  Nc3 {[%clk 0:00:05]} 42. Rxd1 {[%clk 0:00:19]}  Nxd1 {[%clk 0:00:05]} 43. Kg2 {[%clk 0:00:19]}  Nc3 {[%clk 0:00:05]} 44. Re6 {[%clk 0:00:18]}  b5 {[%clk 0:00:05]} 45. Rb6 {[%clk 0:00:16]}  Kg8 {[%clk 0:00:03]} 46. Rb7 {[%clk 0:00:16]}  Kh7 {[%clk 0:00:04]} 47. h5 {[%clk 0:00:15]}  Kg8 {[%clk 0:00:04]} 48. g4 {[%clk 0:00:15]}  Kh7 {[%clk 0:00:04]} 49. Kf3 {[%clk 0:00:15]}  Kg8 {[%clk 0:00:02]} 50. Kf4 {[%clk 0:00:15]}  Nd5+ {[%clk 0:00:01]} 51. Kf5 {[%clk 0:00:15]}  Kh7 {[%clk 0:00:02]} 52. Rxb5 {[%clk 0:00:13]}  Nc3 {[%clk 0:00:02]} 53. Rb7 {[%clk 0:00:11]}  Ne2 {[%clk 0:00:03]} 54. f4 {[%clk 0:00:10]}  Nd4+ {[%clk 0:00:03]} 55. Ke4 {[%clk 0:00:10]}  Nb3 {[%clk 0:00:03]} 56. Rc7 {[%clk 0:00:09]}  Nd2+ {[%clk 0:00:03]} 57. Kf5 {[%clk 0:00:08]}  Nf3 {[%clk 0:00:03]} 58. Rd7 {[%clk 0:00:08]}  Nh4+ {[%clk 0:00:03]} 59. Ke4 {[%clk 0:00:08]}  Ng2 {[%clk 0:00:03]} 60. Rd1 {[%clk 0:00:08]}  Nh4 {[%clk 0:00:04]} 61. Rd2 {[%clk 0:00:07]}  g5 {[%clk 0:00:02]} 62. Rd7+ {[%clk 0:00:06]}  Kg8 {[%clk 0:00:02]} 63. fxg5 {[%clk 0:00:07]}  hxg5 {[%clk 0:00:03]} 64. Rd5 {[%clk 0:00:07]}  Kh7 {[%clk 0:00:02]} 65. Rxg5 {[%clk 0:00:07]}  Ng2 {[%clk 0:00:03]} 66. Rd5 {[%clk 0:00:06]}  Nh4 {[%clk 0:00:03]} 67. Rd2 {[%clk 0:00:04]}  Kh6 {[%clk 0:00:03]} 68. Kf4 {[%clk 0:00:04]}  Kg7 {[%clk 0:00:00]} 69. Rh2 {[%clk 0:00:04]} 1-0


[Site "https://www.chess.com"]

[Event "Titled Tuesday Blitz October 31 Early 2023"]
[White "Demin, Vladimir"]
[Black "Malikova777"]
[WhiteFideId "4167457"]
[WhiteElo "2523"]
[BlackElo "2277"]
[Result "1-0"]
[Round "2"]
[TimeControl "180+1"]
[Date "2023.10.31"]
[WhiteClock "0:01:01"]
[BlackClock "0:00:46"]
[Board "148"]

1. d4 {[%clk 0:02:53]}  Nf6 {[%clk 0:02:59]} 2. Nc3 {[%clk 0:02:50]}  e6 {[%clk 0:02:59]} 3. e4 {[%clk 0:02:48]}  c5 {[%clk 0:03:00]} 4. dxc5 {[%clk 0:02:44]}  Bxc5 {[%clk 0:02:59]} 5. e5 {[%clk 0:02:44]}  Ng8 {[%clk 0:02:53]} 6. Ne4 {[%clk 0:02:43]}  Qb6 {[%clk 0:02:49]} 7. Nxc5 {[%clk 0:02:38]}  Qxc5 {[%clk 0:02:49]} 8. Nf3 {[%clk 0:02:38]}  Nc6 {[%clk 0:02:49]} 9. Qe2 {[%clk 0:02:20]}  Nge7 {[%clk 0:02:45]} 10. Be3 {[%clk 0:02:19]}  Qb4+ {[%clk 0:02:44]} 11. c3 {[%clk 0:02:18]}  Qe4 {[%clk 0:02:42]} 12. Qd3 {[%clk 0:02:11]}  Qd5 {[%clk 0:02:33]} 13. Be2 {[%clk 0:02:00]}  O-O {[%clk 0:02:31]} 14. O-O {[%clk 0:01:54]}  b6 {[%clk 0:02:27]} 15. Rad1 {[%clk 0:01:34]}  Qxa2 {[%clk 0:02:17]} 16. Qc2 {[%clk 0:01:34]}  Nd5 {[%clk 0:02:00]} 17. Ng5 {[%clk 0:01:32]}  g6 {[%clk 0:02:00]} 18. Bd4 {[%clk 0:01:25]}  Nf4 {[%clk 0:01:38]} 19. Bf3 {[%clk 0:01:18]}  Bb7 {[%clk 0:01:30]} 20. Ne4 {[%clk 0:01:17]}  Nxd4 {[%clk 0:01:17]} 21. Rxd4 {[%clk 0:01:07]}  Bxe4 {[%clk 0:01:04]} 22. Rxe4 {[%clk 0:01:02]}  Nd5 {[%clk 0:00:46]} 23. Ra4 {[%clk 0:01:01]} 1-0


[Site "https://www.chess.com"]

[Event "Titled Tuesday Blitz October 31 Early 2023"]
[White "Novikova, Anna"]
[Black "Camilla_Lee"]
[WhiteFideId "4146794"]
[WhiteElo "2276"]
[BlackElo "2521"]
[Result "1-0"]
[Round "2"]
[TimeControl "180+1"]
[Date "2023.10.31"]
[WhiteClock "0:00:48"]
[BlackClock "0:00:28"]
[Board "149"]

1. e4 {[%clk 0:03:00]}  e5 {[%clk 0:02:57]} 2. Nf3 {[%clk 0:03:00]}  Nc6 {[%clk 0:02:54]} 3. Bc4 {[%clk 0:02:58]}  Nf6 {[%clk 0:02:54]} 4. Ng5 {[%clk 0:02:58]}  d5 {[%clk 0:02:54]} 5. exd5 {[%clk 0:02:59]}  Nd4 {[%clk 0:02:53]} 6. c3 {[%clk 0:02:53]}  b5 {[%clk 0:02:53]} 7. cxd4 {[%clk 0:02:02]}  bxc4 {[%clk 0:02:52]} 8. dxe5 {[%clk 0:02:02]}  Qxd5 {[%clk 0:02:52]} 9. O-O {[%clk 0:01:57]}  Bb7 {[%clk 0:02:25]} 10. Nf3 {[%clk 0:01:57]}  Nd7 {[%clk 0:02:10]} 11. Nc3 {[%clk 0:01:55]}  Qd3 {[%clk 0:02:07]} 12. Re1 {[%clk 0:01:56]}  Bc5 {[%clk 0:02:00]} 13. Na4 {[%clk 0:01:36]}  O-O {[%clk 0:01:16]} 14. Nxc5 {[%clk 0:01:32]}  Nxc5 {[%clk 0:01:14]} 15. Re3 {[%clk 0:01:32]}  Qd5 {[%clk 0:01:12]} 16. Qc2 {[%clk 0:00:54]}  Rad8 {[%clk 0:01:04]} 17. b3 {[%clk 0:00:51]}  cxb3 {[%clk 0:00:46]} 18. axb3 {[%clk 0:00:52]}  Rfe8 {[%clk 0:00:28]} 19. Ra5 {[%clk 0:00:48]} 1-0


[Site "https://www.chess.com"]

[Event "Titled Tuesday Blitz October 31 Early 2023"]
[White "Ekdyshman, Mikhail"]
[Black "Nekoo04"]
[WhiteFideId "4149416"]
[WhiteElo "2519"]
[BlackElo "2275"]
[Result "1-0"]
[Round "2"]
[TimeControl "180+1"]
[Date "2023.10.31"]
[WhiteClock "0:00:20"]
[BlackClock "0:00:04"]
[Board "150"]

1. d4 {[%clk 0:03:00]}  d5 {[%clk 0:02:55]} 2. Nf3 {[%clk 0:02:59]}  Nf6 {[%clk 0:02:54]} 3. Bg5 {[%clk 0:02:55]}  Ne4 {[%clk 0:02:49]} 4. Bh4 {[%clk 0:02:55]}  c6 {[%clk 0:02:36]} 5. c3 {[%clk 0:02:54]}  Qb6 {[%clk 0:02:34]} 6. Qb3 {[%clk 0:02:54]}  Bf5 {[%clk 0:02:30]} 7. Nbd2 {[%clk 0:02:54]}  Nd7 {[%clk 0:02:30]} 8. e3 {[%clk 0:02:54]}  e6 {[%clk 0:02:30]} 9. Be2 {[%clk 0:02:53]}  c5 {[%clk 0:02:27]} 10. Nxe4 {[%clk 0:02:49]}  Bxe4 {[%clk 0:02:28]} 11. Nd2 {[%clk 0:02:48]}  Bg6 {[%clk 0:02:27]} 12. O-O {[%clk 0:02:42]}  cxd4 {[%clk 0:02:18]} 13. exd4 {[%clk 0:02:40]}  Bd6 {[%clk 0:02:18]} 14. Bg3 {[%clk 0:02:37]}  Bxg3 {[%clk 0:02:17]} 15. hxg3 {[%clk 0:02:37]}  O-O {[%clk 0:02:17]} 16. Nf3 {[%clk 0:02:29]}  Qc7 {[%clk 0:02:15]} 17. Nh4 {[%clk 0:02:28]}  Be4 {[%clk 0:02:09]} 18. Rad1 {[%clk 0:02:24]}  a6 {[%clk 0:02:00]} 19. Bd3 {[%clk 0:02:23]}  b5 {[%clk 0:01:55]} 20. Bxe4 {[%clk 0:02:19]}  dxe4 {[%clk 0:01:56]} 21. Qc2 {[%clk 0:02:18]}  Nf6 {[%clk 0:01:48]} 22. Qd2 {[%clk 0:02:14]}  h6 {[%clk 0:01:46]} 23. f4 {[%clk 0:02:08]}  exf3 {[%clk 0:01:42]} 24. Rxf3 {[%clk 0:02:04]}  Ne4 {[%clk 0:01:29]} 25. Qe3 {[%clk 0:02:00]}  Qc6 {[%clk 0:01:02]} 26. Re1 {[%clk 0:01:57]}  Nd6 {[%clk 0:00:59]} 27. Rff1 {[%clk 0:01:47]}  b4 {[%clk 0:00:48]} 28. cxb4 {[%clk 0:01:39]}  Rfb8 {[%clk 0:00:32]} 29. a3 {[%clk 0:01:34]}  a5 {[%clk 0:00:32]} 30. d5 {[%clk 0:01:14]}  Qxd5 {[%clk 0:00:24]} 31. Rd1 {[%clk 0:01:13]}  Nc4 {[%clk 0:00:19]} 32. Qf4 {[%clk 0:01:05]}  Qb7 {[%clk 0:00:18]} 33. Qxc4 {[%clk 0:01:03]}  axb4 {[%clk 0:00:18]} 34. axb4 {[%clk 0:00:55]}  Qxb4 {[%clk 0:00:18]} 35. Qxb4 {[%clk 0:00:50]}  Rxb4 {[%clk 0:00:19]} 36. Rd7 {[%clk 0:00:50]}  g5 {[%clk 0:00:17]} 37. Nf3 {[%clk 0:00:28]}  Rxb2 {[%clk 0:00:16]} 38. Ne5 {[%clk 0:00:20]}  Raa2 {[%clk 0:00:16]} 39. Rd8+ {[%clk 0:00:19]}  Kg7 {[%clk 0:00:04]} 40. Rxf7# {[%clk 0:00:20]} 1-0


[Site "https://www.chess.com"]

[Event "Titled Tuesday Blitz October 31 Early 2023"]
[White "vishwa_vijeta"]
[Black "Ng, Gary"]
[BlackFideId "2604914"]
[WhiteElo "2516"]
[BlackElo "2266"]
[Result "1-0"]
[Round "2"]
[TimeControl "180+1"]
[Date "2023.10.31"]
[WhiteClock "0:02:25"]
[BlackClock "0:01:47"]
[Board "152"]

1. e4 {[%clk 0:03:00]}  b6 {[%clk 0:02:24]} 2. d4 {[%clk 0:02:57]}  Bb7 {[%clk 0:02:25]} 3. Nd2 {[%clk 0:02:54]}  Nf6 {[%clk 0:02:25]} 4. Bd3 {[%clk 0:02:53]}  Nc6 {[%clk 0:02:24]} 5. e5 {[%clk 0:02:47]}  Nb4 {[%clk 0:02:23]} 6. exf6 {[%clk 0:02:33]}  Nxd3+ {[%clk 0:02:22]} 7. cxd3 {[%clk 0:02:34]}  Bxg2 {[%clk 0:02:23]} 8. fxg7 {[%clk 0:02:34]}  Bxg7 {[%clk 0:02:19]} 9. Qg4 {[%clk 0:02:34]}  Bxh1 {[%clk 0:02:19]} 10. Qxg7 {[%clk 0:02:33]}  Rf8 {[%clk 0:02:19]} 11. Ne4 {[%clk 0:02:27]}  Bxe4 {[%clk 0:01:59]} 12. Bh6 {[%clk 0:02:24]}  d5 {[%clk 0:01:48]} 13. Qxf8+ {[%clk 0:02:23]}  Kd7 {[%clk 0:01:49]} 14. Qxd8+ {[%clk 0:02:24]}  Rxd8 {[%clk 0:01:47]} 15. dxe4 {[%clk 0:02:25]} 1-0


[Site "https://www.chess.com"]